bitfinex/quotes_ETHUSD_20260203
["timestamp","ask_amount","ask_price","bid_price","bid_amount"]
[1770139663634,1.12130147,2231.2,2230.1,12.79395492]
[1770139664539,0.00080216,2231.2,2230.2,13.18571411]
[1770139664739,0.00080216,2231.2,2230.3,13.35988035]
[1770139664956,0.00080216,2231.2,2230.4,1.93454828]
[1770139665487,0.10320216,2231.2,2230.2,0.555]
[1770139665642,0.94,2231.1,2230.2,0.555]
[1770139665841,0.94091582,2231.0,2230.2,1.11]
[1770139666041,0.94091582,2231.0,2230.2,1e-08]
[1770139666268,3.05597536,2231.1,2230.2,1e-08]
[1770139666440,1.4162905,2231.0,2230.2,1e-08]
[1770139666763,1.12067419,2230.8,2230.2,1e-08]
[1770139667065,1.12067419,2230.8,2230.2,0.55500001]
[1770139667366,1.1206595,2230.9,2230.2,0.55500001]
[1770139667882,2.06056138,2231.1,2230.2,0.55500001]
[1770139668058,2.06052432,2231.1,2230.2,1.11000001]
[1770139668261,2.06052432,2231.1,2230.3,0.27860129]
[1770139669138,2.06052432,2231.1,2230.3,0.83360129]
[1770139669340,2.06052432,2231.1,2230.3,0.555]
[1770139669842,0.00080216,2231.2,2230.5,12.23895492]
[1770139670355,1.1212966,2231.2,2230.5,0.555]
[1770139670754,0.00080216,2231.2,2230.5,12.62573183]
[1770139671161,0.00080216,2231.2,2230.5,13.74655478]
[1770139671481,5.65850582,2231.7,2230.8,12.07073183]
[1770139671482,1.1202593,2231.7,2230.8,12.07073183]
[1770139671681,1.12130462,2231.8,2230.8,12.07073183]
[1770139672460,0.94523617,2231.7,2230.8,0.555]
[1770139672684,0.94523617,2231.6,2230.8,0.555]
[1770139672896,5.66565992,2231.6,2230.8,0.555]
[1770139673207,1.78211406,2231.5,2230.3,0.555]
[1770139673386,1.17841252,2231.2,2230.3,0.55500001]
[1770139673587,0.94,2231.1,2230.3,0.55500001]
[1770139673885,0.94,2231.1,2230.4,12.67457383]
[1770139674067,0.94,2231.1,2230.3,0.55500001]
[1770139674265,0.94,2231.1,2230.3,0.98310018]
[1770139674453,0.94,2231.1,2230.6,0.001]
[1770139674898,1.12057373,2231.0,2230.6,0.001]
[1770139675577,1.12057373,2231.0,2230.6,0.556]
[1770139675782,1.12057373,2231.0,2230.6,0.506]
[1770139676088,1.12057373,2231.0,2230.2,1.11000001]
[1770139676089,1.12638687,2230.9,2230.2,1.11000001]
[1770139676257,0.94519641,2230.8,2230.2,1.11000001]
[1770139676582,0.94519641,2230.8,2230.2,1.66500001]
[1770139676806,1.12072443,2230.7,2230.2,1.66500001]
[1770139677707,1.12072443,2230.7,2230.2,2.22000001]
[1770139677911,1.12057373,2231.0,2230.3,0.2775]
[1770139678218,2.06055909,2231.1,2230.2,16.01553082]
[1770139678381,2.06055909,2231.1,2230.2,14.89457384]
[1770139678722,2.06055909,2231.1,2230.2,15.44957384]
[1770139679016,0.94584298,2231.0,2230.2,15.44957384]
[1770139679311,2.06055909,2231.1,2230.2,15.44957384]
[1770139679510,0.94591878,2231.0,2230.2,17.16213665]
[1770139679716,2.06055909,2231.1,2230.2,17.16213665]
[1770139679895,0.94585032,2231.0,2230.2,17.71713665]
[1770139680090,2.06055909,2231.1,2230.2,3.33000001]
[1770139680395,1.18436931,2230.8,2230.1,0.555]
[1770139680599,2.13017535,2230.7,2230.1,0.00995316]
[1770139680897,1.12082492,2230.5,2230.1,0.555]
[1770139681225,1.12082492,2230.5,2229.8,13.78457383]
[1770139681384,1.12082492,2230.5,2229.8,1.11]
[1770139681723,0.1024,2230.3,2229.8,1.06]
[1770139681889,0.94537313,2230.2,2229.8,1.06]
[1770139682216,0.94,2230.4,2229.8,1.615]
[1770139682395,1.12080198,2230.6,2229.8,14.28957383]
[1770139682939,1.12087517,2230.4,2229.8,14.28957383]
[1770139683213,5.66541447,2230.8,2229.9,12.67457383]
[1770139683214,1.12072443,2230.7,2229.9,12.67457383]
[1770139683402,1.12070937,2230.8,2229.9,12.67457383]
[1770139683604,0.94,2230.9,2229.9,13.61457383]
[1770139683806,2.06062935,2230.9,2229.9,13.61457383]
[1770139684114,2.06062935,2230.9,2229.9,14.16957383]
[1770139684312,2.06062935,2230.9,2230.1,12.67457383]
[1770139684813,2.06062935,2230.9,2230.0,1.88965601]
[1770139684814,0.94574527,2230.8,2229.9,0.555]
[1770139685017,1.12072443,2230.7,2229.9,0.555]
[1770139685193,0.94546296,2230.6,2229.9,1.11]
[1770139685387,1.12072443,2230.7,2229.9,1.11]
[1770139685713,0.94532514,2230.6,2229.9,1.11]
[1770139685917,2.34160809,2230.7,2229.9,1.11]
[1770139686220,2.34160809,2230.7,2229.7,0.001]
[1770139686221,2.13453738,2230.6,2229.7,0.001]
[1770139686399,0.94507167,2230.5,2229.9,0.555]
[1770139686595,0.94507167,2230.4,2229.9,0.555]
[1770139686809,0.94514172,2230.3,2229.9,0.555]
[1770139687011,1.12082492,2230.5,2229.9,0.555]
[1770139687326,1.62450697,2230.4,2229.8,0.001]
[1770139687630,0.10915919,2230.2,2229.5,0.001]
[1770139687925,1.88528353,2230.3,2229.5,12.67557383]
[1770139688127,1.18270652,2230.9,2229.9,12.67457383]
[1770139688296,2.06655926,2230.8,2230.0,1.26745738]
[1770139688496,0.94586433,2230.7,2230.0,14.49703121]
[1770139688696,0.94579427,2230.6,2230.0,14.49703121]
[1770139688899,1.12069493,2230.8,2230.0,14.49703121]
[1770139689141,0.94580592,2230.7,2230.0,14.49703121]
[1770139689344,0.00785919,2231.6,2230.4,12.67457383]
[1770139689345,0.0008024,2231.2,2230.4,12.67457383]
[1770139689506,1.12127571,2231.2,2230.4,13.22957383]
[1770139690377,2.3656217,2232.1,2231.5,12.67457383]
[1770139690641,2.3656217,2232.1,2231.5,0.555]
[1770139690642,0.3485593,2232.1,2231.5,0.555]
[1770139691135,1.12007168,2232.0,2230.9,0.94675919]
[1770139691312,0.1024,2231.9,2230.9,0.94]
[1770139691836,0.1024,2231.9,2230.9,1.495]
[1770139692025,0.70753177,2231.9,2230.9,1.495]
[1770139692709,0.70753177,2231.9,2230.9,2.05]
[1770139693332,1.12017205,2231.8,2230.9,2.05]
[1770139693504,1.12017205,2231.8,2230.9,1.06]
[1770139693505,0.1024,2231.7,2230.9,1.06]
[1770139693935,0.1024,2231.7,2230.9,1.615]
[1770139694137,0.82723921,2231.7,2230.9,1.615]
[1770139694334,0.72483921,2231.7,2230.9,1.615]
[1770139694532,1.12017205,2231.8,2230.9,14.28957383]
[1770139694831,1.12017205,2231.8,2230.9,15.22957383]
[1770139695035,1.12017205,2231.8,2230.9,15.78457383]
[1770139695464,1.12017205,2231.8,2230.9,14.84457383]
[1770139696036,1.12017205,2231.8,2230.9,15.39957383]
[1770139696217,0.57167629,2231.7,2230.9,15.39957383]
[1770139697018,1.12017205,2231.8,2230.9,15.95457383]
[1770139697447,1.11977067,2232.6,2231.2,12.68133302]
[1770139697622,1.11977067,2232.6,2231.4,12.67457383]
[1770139697822,1.12083523,2232.7,2231.4,12.67457383]
[1770139698028,1.12083523,2232.7,2231.6,12.67457383]
[1770139698511,1.12083523,2232.7,2231.6,12.66436991]
[1770139698847,0.0011,2232.7,2231.6,12.6711291]
[1770139699239,0.0011,2232.7,2231.7,12.67457383]
[1770139699445,0.0011,2232.7,2231.6,0.555]
[1770139699650,0.59142281,2232.7,2231.7,1.12021966]
[1770139700043,0.59142281,2232.7,2231.6,14.16957383]
[1770139700348,0.59142281,2232.7,2231.6,14.72457383]
[1770139700844,0.00675919,2232.5,2231.6,1.11]
[1770139701045,0.939,2232.5,2231.6,1.11]
[1770139701466,1.12663018,2232.4,2231.6,1.665]
[1770139701626,0.65518733,2232.3,2231.6,1.665]
[1770139701856,1.11987099,2232.4,2231.6,1.665]
[1770139702082,2.05884919,2232.5,2231.6,14.80705852]
[1770139702389,2.05882312,2232.5,2231.6,14.80705852]
[1770139702694,0.0011,2232.7,2231.7,12.02180376]
[1770139702695,1.12082623,2232.7,2231.7,12.02180376]
[1770139703396,1.12082623,2232.7,2231.8,13.14197581]
[1770139703561,0.0011,2232.7,2232.0,12.02180376]
[1770139703887,0.0011,2232.7,2232.0,12.96080376]
[1770139704289,1.11952598,2233.1,2232.2,12.02180376]
[1770139704464,1.11952598,2233.1,2232.0,0.939]
[1770139704665,1.11952598,2233.1,2232.1,0.27012664]
[1770139704867,1.11952598,2233.1,2232.1,1.20912664]
[1770139705064,0.1024,2233.0,2232.1,0.22012664]
[1770139705273,0.1024,2233.0,2232.0,0.555]
[1770139705588,1.12637941,2232.9,2232.0,0.555]
[1770139705787,0.00675919,2232.8,2232.0,1.11]
[1770139706280,1.11962022,2232.9,2232.0,1.11]
[1770139706587,0.57072603,2232.8,2232.0,1.11]
[1770139706793,0.57748522,2232.8,2231.8,0.555]
[1770139706955,0.57072603,2232.8,2232.0,0.555]
[1770139707394,1.11972051,2232.7,2232.0,0.555]
[1770139707976,1.11972051,2232.7,2232.0,1.11]
[1770139708152,0.61693286,2232.6,2232.0,1.11]
[1770139709096,0.61693286,2232.6,2232.0,1.665]
[1770139709396,4.47888207,2232.9,2232.0,1.665]
[1770139709604,0.00675919,2232.7,2231.8,0.555]
[1770139709759,0.00675919,2232.5,2231.8,0.555]
[1770139709965,0.00675919,2232.5,2231.6,2.22]
[1770139709966,0.1024,2232.3,2231.6,2.22]
[1770139710169,0.1024,2232.3,2230.9,3.28]
[1770139710170,0.00675919,2232.2,2230.9,3.28]
[1770139710387,0.00675919,2232.2,2231.0,0.328]
[1770139710600,0.00675919,2231.6,2230.5,0.00080264]
[1770139710807,0.1024,2231.4,2230.5,0.00080264]
[1770139710970,0.10915919,2231.4,2230.5,0.00080264]
[1770139711170,0.1024,2231.4,2230.5,0.55580264]
[1770139711367,0.939,2231.5,2230.6,13.14255671]
[1770139711690,6.43047371,2232.4,2230.6,12.02180376]
[1770139711691,1.11997132,2232.3,2230.6,12.02180376]
[1770139711905,0.0011,2232.5,2230.8,12.02856295]
[1770139712102,0.11025919,2232.5,2231.5,0.001]
[1770139712403,0.00675919,2232.0,2230.8,12.02180376]
[1770139712572,0.00675919,2232.2,2230.9,1.20218038]
[1770139712769,0.939,2231.9,2230.9,1.20218038]
[1770139713372,0.939,2231.9,2230.9,1.75718038]
[1770139713373,1.12017205,2231.8,2230.9,1.75718038]
[1770139714486,1.12017205,2231.8,2230.9,2.31218038]
[1770139714664,1.12017205,2231.8,2231.0,13.45520217]
[1770139715264,1.12017205,2231.8,2230.9,1.11]
[1770139715473,4.48068823,2231.9,2230.9,1.665]
[1770139716398,4.48068823,2231.9,2230.9,13.68680376]
[1770139716601,1.12007503,2232.0,2231.0,12.02180376]
[1770139716826,1.12007503,2232.0,2231.1,1.53624161]
[1770139717096,1.12007503,2232.0,2230.9,2.22]
[1770139717673,1.12007503,2232.0,2230.9,2.775]
[1770139718803,1.12007503,2232.0,2230.9,3.33]
[1770139719778,1.12007503,2232.0,2230.9,3.885]
[1770139720098,0.65460968,2231.9,2230.9,4.38567192]
[1770139720992,0.65460968,2231.9,2230.9,4.94067192]
[1770139721707,1.12017205,2231.8,2230.9,4.94067192]
[1770139721908,1.12017205,2231.8,2230.9,5.49567192]
[1770139722974,1.12017205,2231.8,2230.9,6.05067192]
[1770139723179,0.625547,2231.7,2230.9,6.05067192]
[1770139723723,1.12703164,2231.6,2230.9,5.55]
[1770139724009,0.00675919,2231.5,2230.9,5.5]
[1770139724213,0.00675919,2231.5,2230.7,0.001]
[1770139724214,0.939,2231.4,2230.7,0.001]
[1770139725330,0.939,2231.4,2230.9,0.001]
[1770139725821,5.4211898,2231.8,2230.9,12.02280376]
[1770139726004,1.70244812,2231.7,2230.9,0.001]
[1770139726317,1.69568893,2231.7,2230.9,0.556]
[1770139726881,1.70244812,2231.7,2230.9,0.556]
[1770139727079,1.69568893,2231.7,2230.9,0.556]
[1770139727279,0.939,2231.6,2230.9,0.556]
[1770139727503,1.65068787,2231.6,2230.9,1.111]
[1770139728421,1.12032265,2231.5,2230.9,1.666]
[1770139729209,1.12032265,2231.5,2230.7,0.556]
[1770139729608,1.12708184,2231.5,2230.7,1.111]
[1770139730532,1.12042307,2231.3,2230.7,1.111]
[1770139730738,0.71168787,2231.6,2230.7,13.74366862]
[1770139730898,1.12027369,2231.6,2230.7,14.8643867]
[1770139731091,1.12129042,2231.8,2230.7,14.8643867]
[1770139731323,0.0011,2231.8,2230.7,14.8643867]
[1770139731493,0.0011,2231.8,2230.9,12.07766862]
[1770139731692,1.121178,2232.0,2230.9,12.63266862]
[1770139731892,0.0011,2232.0,2231.1,12.07766862]
[1770139732600,0.0011,2232.0,2231.2,1.12047328]
[1770139732829,0.0011,2232.0,2231.3,12.07766862]
[1770139733517,0.0011,2232.0,2231.1,0.555]
[1770139733925,0.0011,2232.0,2231.1,1.11]
[1770139734113,0.0011,2232.0,2231.2,12.97481664]
[1770139734421,3.75870799,2232.4,2231.2,12.97481664]
[1770139735018,3.75870799,2232.4,2231.2,13.52981664]
[1770139735924,3.75870799,2232.4,2231.2,14.08481664]
[1770139736312,0.00675919,2232.3,2231.2,14.08481664]
[1770139736513,0.85029023,2232.3,2231.2,13.83803236]
[1770139736838,0.84353104,2232.3,2231.2,13.83803236]
[1770139737127,1.11997132,2232.2,2231.2,14.39303236]
[1770139738217,1.11997132,2232.2,2231.2,14.94803236]
[1770139738409,2.29741627,2232.2,2231.3,1.71885282]
[1770139738609,2.29851627,2232.2,2231.3,1.71885282]
[1770139739100,2.29851627,2232.2,2231.3,14.44688518]
[1770139739295,1.12107132,2232.2,2231.4,12.72803236]
[1770139740228,1.12107132,2232.2,2231.3,13.28403236]
[1770139740527,1.12107132,2232.2,2231.4,0.555]
[1770139741099,0.0011,2232.4,2231.6,12.72803236]
[1770139741303,0.0011,2232.4,2231.5,1.12032265]
[1770139741304,0.0011,2232.4,2231.8,12.72803236]
[1770139741606,0.0011,2232.4,2231.7,1.3848355]
[1770139741607,0.0011,2232.4,2231.6,0.555]
[1770139742521,0.0011,2232.4,2231.6,1.11]
[1770139742726,0.0011,2232.4,2231.6,13.83803236]
[1770139743199,0.0011,2232.4,2231.8,12.72803236]
[1770139743400,0.0011,2232.4,2231.9,14.20675782]
[1770139743598,0.0011,2232.4,2231.9,14.76175782]
[1770139743828,0.0011,2232.7,2231.9,14.76175782]
[1770139744739,0.0011,2232.7,2231.6,13.83803236]
[1770139744898,0.1024,2232.6,2231.6,13.83803236]
[1770139745101,1.11982082,2232.5,2231.6,13.83803236]
[1770139745297,1.11982082,2232.5,2231.6,1.11]
[1770139745499,0.10915919,2232.1,2231.4,0.555]
[1770139745725,0.94575919,2232.0,2231.2,2.22]
[1770139745923,0.00675919,2231.5,2230.5,13.283835]
[1770139746154,0.10915919,2231.5,2230.5,0.55580264]
[1770139746312,0.00675919,2230.8,2229.9,0.001]
[1770139746513,0.939,2230.7,2229.5,0.001]
[1770139746747,1.57911302,2230.9,2229.6,12.72903236]
[1770139746953,0.939,2231.0,2229.9,13.84915582]
[1770139747103,0.00080264,2231.2,2230.3,12.72803236]
[1770139748108,0.00080264,2231.2,2230.3,13.28303236]
[1770139748944,0.00080264,2231.2,2230.3,14.22203236]
[1770139749107,0.00080264,2231.2,2230.3,14.77703236]
[1770139749306,0.00080264,2231.2,2230.4,15.43865972]
[1770139749641,2.0591385,2231.9,2230.5,12.72883524]
[1770139750127,2.0591385,2231.9,2230.5,13.28383524]
[1770139750335,2.0591385,2231.9,2230.5,0.55580288]
[1770139750336,0.00675919,2231.5,2230.5,0.55580288]
[1770139750533,3.02537092,2231.5,2230.5,0.55580288]
[1770139751132,0.94653498,2231.4,2230.5,0.55580288]
[1770139751336,1.12047328,2231.2,2230.5,1.11080288]
[1770139751539,0.94653498,2231.1,2230.5,1.11080288]
[1770139751742,2.05947328,2231.2,2230.5,1.11080288]
[1770139751938,0.94633738,2231.1,2230.5,1.11080288]
[1770139752232,2.13043435,2231.0,2230.1,0.001]
[1770139752414,0.00675919,2231.1,2230.1,0.001]
[1770139752415,0.94633738,2230.9,2230.1,0.001]
[1770139752730,0.94633738,2230.8,2230.1,0.001]
[1770139752930,1.19085616,2231.0,2230.1,0.001]
[1770139753230,1.12067419,2230.8,2230.1,0.001]
[1770139753433,1.77556351,2230.8,2230.1,0.556]
[1770139753814,1.12067419,2230.8,2230.1,0.556]
[1770139754349,1.12128494,2231.2,2230.1,13.28403236]
[1770139754527,1.12128494,2231.2,2230.1,13.83903236]
[1770139754839,0.0011,2231.5,2230.6,12.72803236]
[1770139755229,1.18519697,2232.4,2231.0,12.72803236]
[1770139755428,0.0011,2232.4,2231.4,0.00675919]
[1770139755628,0.0011,2232.4,2231.4,12.73479155]
[1770139755839,0.0011,2232.4,2231.5,0.00675919]
[1770139756124,0.0011,2232.4,2231.6,0.94]
[1770139756319,0.0011,2232.4,2231.7,1.36747916]
[1770139756722,0.0011,2232.4,2231.7,1.92247916]
[1770139756925,1.12097534,2232.4,2231.7,1.92247916]
[1770139757126,1.12097534,2232.4,2231.7,0.555]
[1770139757340,0.0011,2232.4,2231.7,0.555]
[1770139757833,0.0011,2232.4,2231.7,1.11]
[1770139758830,0.0011,2232.4,2231.7,1.665]
[1770139759232,0.0011,2232.4,2231.7,3.66445011]
[1770139759436,0.0011,2232.4,2230.8,0.50988665]
[1770139759615,0.0011,2232.4,2230.9,1.1206229]
[1770139759616,0.94426466,2232.3,2230.9,1.1206229]
[1770139759819,0.94426466,2232.2,2231.0,1.1205597]
[1770139760150,0.1035,2232.4,2231.1,1.12051691]
[1770139760451,0.94425021,2232.3,2231.1,1.12051691]
[1770139760749,0.1035,2232.4,2231.2,1.12046729]
[1770139760948,0.94449097,2232.3,2231.2,0.555]
[1770139761151,0.1035,2232.4,2231.2,0.555]
[1770139761152,0.94449734,2232.2,2231.2,0.555]
[1770139761324,1.11992115,2232.3,2231.2,0.555]
[1770139761527,0.94452944,2232.2,2231.2,0.555]
[1770139761735,1.11992115,2232.3,2231.2,1.35963617]
[1770139761940,0.9445303,2232.2,2231.2,1.35963617]
[1770139762150,1.11992115,2232.3,2231.2,1.91463617]
[1770139762318,0.94455757,2232.2,2231.2,1.91463617]
[1770139762522,1.11992115,2232.3,2231.2,1.91463617]
[1770139762761,0.57031058,2232.2,2231.2,1.11]
[1770139763244,0.57031058,2232.2,2231.2,1.665]
[1770139763448,1.1200215,2232.1,2231.2,1.665]
[1770139764251,1.1200215,2232.1,2231.2,2.22]
[1770139764429,1.1200215,2232.1,2231.2,3.34046575]
[1770139764634,0.1035,2232.4,2231.2,3.34046575]
[1770139764635,2.05892115,2232.3,2231.2,16.1860715]
[1770139764951,0.0011,2232.4,2231.3,12.06333219]
[1770139765248,1.12097373,2232.4,2231.3,12.61833219]
[1770139765447,1.12097373,2232.4,2231.4,1.12037286]
[1770139765448,0.0011,2232.4,2231.4,1.12037286]
[1770139765752,0.0011,2232.4,2231.4,14.12270505]
[1770139766065,0.0011,2232.4,2231.5,13.97992776]
[1770139766236,0.0011,2232.4,2231.5,1.91659557]
[1770139766438,0.0011,2232.4,2231.5,0.555]
[1770139767149,0.0011,2232.1,2231.5,0.555]
[1770139767551,0.0011,2232.1,2231.5,1.11]
[1770139768428,0.0011,2232.1,2231.5,1.665]
[1770139769380,0.0011,2232.1,2231.5,1.615]
[1770139769657,0.0011,2232.1,2231.5,0.555]
[1770139770665,0.0011,2232.1,2231.5,1.11]
[1770139771369,0.0011,2232.1,2231.5,1.38864039]
[1770139771868,0.0011,2232.1,2231.5,1.94364039]
[1770139772641,0.0011,2232.1,2231.5,3.06395173]
[1770139772848,0.0011,2232.1,2231.5,2.49864039]
[1770139773039,0.0011,2232.1,2231.5,3.61896181]
[1770139773446,1.11982082,2232.6,2231.5,3.61896181]
[1770139773447,3.15260077,2233.8,2232.8,12.06333219]
[1770139773642,1.11906893,2234.0,2233.1,0.99794642]
[1770139773954,1.11896875,2234.2,2233.1,0.555]
[1770139774141,0.94663518,2234.1,2233.1,0.555]
[1770139774470,1.11896875,2234.2,2233.1,0.555]
[1770139775070,1.11896875,2234.2,2233.1,1.11]
[1770139775238,4.48164767,2234.7,2233.1,1.11]
[1770139775239,0.23405137,2235.0,2233.3,6.80232925]
[1770139775439,13.99325378,2235.6,2234.7,0.8448018]
[1770139775677,7.39302489,2235.6,2234.1,1.11901884]
[1770139775881,1.11820042,2235.8,2234.2,14.88074511]
[1770139776179,1.11820042,2235.8,2234.3,0.95765742]
[1770139776338,13.99316783,2235.8,2234.2,13.92308769]
[1770139776536,13.99316783,2235.8,2234.1,0.555]
[1770139777147,13.99316783,2235.8,2234.1,1.11]
[1770139777345,0.1024,2235.4,2234.1,1.11]
[1770139777570,0.1024,2234.8,2234.1,1.06]
[1770139777755,12.97736741,2234.8,2234.1,1.06]
[1770139777954,1.40959857,2234.7,2234.1,1.06]
[1770139778155,1.40959857,2234.7,2234.1,1.615]
[1770139778671,0.939,2234.6,2234.1,1.615]
[1770139779482,12.97736741,2234.5,2233.1,6.93572746]
[1770139779648,1.35370935,2234.5,2233.1,8.0552418]
[1770139780169,14.22867676,2234.5,2233.1,6.93572746]
[1770139780376,14.22867676,2234.5,2233.1,8.61022865]
[1770139780672,14.22867676,2234.5,2233.1,8.61022349]
[1770139780871,2.90328746,2234.4,2233.2,1.30884852]
[1770139781260,0.23485986,2234.5,2234.3,0.001]
[1770139781566,14.22865565,2234.5,2233.2,0.555]
[1770139782143,14.22865565,2234.5,2233.2,1.67545519]
[1770139782342,12.97736741,2234.4,2233.2,0.556]
[1770139782555,12.87496741,2234.2,2233.2,1.111]
[1770139782761,12.97736741,2234.1,2233.2,1.111]
[1770139783051,1.43310557,2234.3,2233.2,1.111]
[1770139783261,0.939,2234.2,2233.2,1.111]
[1770139783662,1.11901884,2234.1,2233.2,1.666]
[1770139783864,13.52837683,2234.0,2233.2,1.666]
[1770139784181,12.87496741,2233.5,2231.8,12.06333219]
[1770139784395,12.87496741,2233.1,2231.6,2.68859422]
[1770139784681,12.87496741,2233.1,2231.6,3.24360041]
[1770139784992,12.87496741,2233.5,2231.7,13.05780336]
[1770139785143,0.939,2233.1,2231.7,13.05780336]
[1770139785545,0.1024,2233.7,2231.7,13.05780336]
[1770139785546,0.1024,2233.7,2232.0,13.18340387]
[1770139785746,0.1024,2233.7,2232.0,13.73840387]
[1770139785968,0.939,2233.6,2232.0,13.73840387]
[1770139786189,0.939,2233.6,2232.1,1.82186906]
[1770139786348,13.8207266,2233.6,2232.1,1.82186906]
[1770139786856,12.8817266,2233.4,2232.1,2.37686906]
[1770139787052,0.00675919,2233.3,2232.1,0.555]
[1770139787257,12.8817266,2233.1,2232.1,0.555]
[1770139787450,0.00675919,2233.0,2232.1,0.555]
[1770139787652,2.05862022,2232.9,2232.1,0.555]
[1770139787848,2.05862022,2232.9,2232.1,1.11]
[1770139788152,0.65371011,2232.8,2232.1,1.11]
[1770139788352,2.05862022,2232.9,2232.1,1.11]
[1770139789083,2.05862022,2232.9,2232.1,1.665]
[1770139789475,2.06537941,2232.9,2232.1,1.665]
[1770139789793,2.06537941,2232.9,2231.6,1.67527152]
[1770139789794,0.00675919,2232.5,2231.6,0.555]
[1770139790003,12.8817266,2232.6,2231.6,0.555]
[1770139790284,0.00675919,2232.2,2231.5,2.22]
[1770139790486,0.939,2232.1,2231.5,2.22]
[1770139790692,0.10915919,2232.0,2231.2,2.22]
[1770139791075,0.00675919,2231.9,2231.3,0.55500001]
[1770139791389,12.8817266,2232.3,2231.3,1e-08]
[1770139791390,12.87496741,2232.3,2231.3,1e-08]
[1770139791574,0.939,2232.2,2231.3,0.27760001]
[1770139791775,1.1200215,2232.1,2231.3,0.27760001]
[1770139792286,1.1200215,2232.1,2231.3,0.83260001]
[1770139792486,13.347655,2232.1,2231.3,0.55500001]
[1770139792792,0.00675919,2231.9,2231.2,2.22]
[1770139793093,0.00675919,2231.9,2230.9,0.555]
[1770139793094,0.00675919,2231.6,2230.9,0.555]
[1770139793298,0.939,2231.5,2230.9,1.11]
[1770139793498,0.94575919,2231.5,2230.3,0.001]
[1770139793713,1.12042307,2231.3,2230.3,0.001]
[1770139793866,1.50069057,2231.2,2230.3,0.001]
[1770139794395,1.26622772,2231.1,2230.3,0.555]
[1770139794697,1.27298691,2231.1,2230.4,0.001]
[1770139794874,1.50744976,2231.2,2230.4,0.001]
[1770139794875,1.01298232,2231.0,2230.4,0.001]
[1770139795578,1.01298232,2231.0,2230.4,0.556]
[1770139795811,2.13357615,2231.0,2230.4,0.556]
[1770139796719,0.00080312,2231.2,2230.4,2.231874]
[1770139797014,0.00080312,2231.2,2230.5,0.2786874]
[1770139797597,0.00080312,2231.2,2230.5,0.8336874]
[1770139798117,0.00080312,2231.2,2230.5,1.95450574]
[1770139798325,0.00080312,2231.2,2230.5,0.8336874]
[1770139798817,0.00080312,2231.2,2230.5,1.3886874]
[1770139799020,0.00080312,2231.2,2230.6,0.36205292]
[1770139799232,1.12027014,2231.7,2230.6,0.36205292]
[1770139799386,2.05927014,2231.7,2230.6,0.36205292]
[1770139799705,1.12718226,2231.3,2230.6,0.555]
[1770139799915,0.1024,2231.6,2230.6,0.555]
[1770139800225,0.00675919,2231.5,2230.6,0.555]
[1770139800391,0.00675919,2230.9,2230.4,1.111]
[1770139800706,0.00675919,2230.5,2229.6,0.556]
[1770139801097,0.00080336,2231.2,2230.1,1.12100838]
[1770139801306,0.00080336,2231.2,2230.2,1.80188149]
[1770139801625,0.939,2231.1,2230.2,1.80188149]
[1770139801792,0.00080336,2231.2,2230.3,1.12092543]
[1770139802327,1.12041229,2231.4,2230.3,1.12092543]
[1770139802328,0.64784723,2231.8,2230.3,13.53444507]
[1770139802626,0.64784723,2231.8,2230.5,12.41432324]
[1770139802790,0.64784723,2231.8,2230.6,13.65495196]
[1770139802990,0.64784723,2231.8,2230.6,14.20995196]
[1770139803637,1.76802456,2231.8,2230.6,1.79643232]
[1770139803819,1.12703164,2231.6,2230.6,0.555]
[1770139804138,0.00675919,2231.3,2230.6,1.11]
[1770139804296,0.94575919,2231.3,2230.6,1.11]
[1770139804504,0.00675919,2230.9,2230.2,0.555]
[1770139804706,0.00675919,2230.7,2230.2,0.555]
[1770139804920,0.94575919,2230.6,2229.9,0.001]
[1770139805194,0.00675919,2230.5,2229.9,0.556]
[1770139805431,0.00675919,2230.2,2229.5,0.001]
[1770139805739,0.00675919,2229.8,2229.3,0.00080288]
[1770139805903,2.06022707,2229.7,2229.3,0.00080288]
[1770139806227,1.12097569,2230.2,2229.3,0.55580288]
[1770139806430,0.939,2230.0,2229.3,0.55580288]
[1770139806800,1.12097569,2230.2,2229.3,0.55580288]
[1770139807056,0.939,2230.1,2229.3,0.55580288]
[1770139807240,0.00675919,2229.7,2229.2,0.555]
[1770139807540,12.32826956,2230.0,2229.2,0.555]
[1770139807541,0.10320288,2230.0,2229.2,0.555]
[1770139807736,0.00080288,2230.0,2229.2,0.555]
[1770139808053,1.12187911,2230.0,2229.2,0.555]
[1770139808445,0.00675919,2229.9,2229.2,1.11]
[1770139808649,0.72197033,2229.9,2229.2,1.11]
[1770139808958,1.12187911,2230.0,2229.2,1.11]
[1770139809120,0.00675919,2229.8,2229.2,1.06]
[1770139809463,0.00675919,2229.6,2229.2,0.555]
[1770139809621,0.00675919,2229.6,2229.0,2.171]
[1770139809823,0.00675919,2229.5,2229.0,2.171]
[1770139810048,2.06137794,2229.4,2229.0,2.171]
[1770139810646,3.16525458,2229.4,2228.6,0.50804691]
[1770139810951,0.00675919,2229.2,2228.6,0.50804691]
[1770139811152,0.1024,2229.3,2228.6,0.50804691]
[1770139811455,0.10320288,2230.0,2228.6,0.50804691]
[1770139811654,1.1211265,2229.9,2228.9,1.12158133]
[1770139811843,1.1211265,2229.9,2229.0,0.56081741]
[1770139812048,1.1211265,2229.9,2228.8,1.12164433]
[1770139812247,1.1211265,2229.9,2228.8,12.41351964]
[1770139812758,1.1211265,2229.9,2228.8,14.09019757]
[1770139812955,1.1211265,2229.9,2228.8,12.96851964]
[1770139813459,1.1211265,2229.9,2228.8,0.555]
[1770139813460,2.0611265,2229.9,2228.8,0.555]
[1770139813770,0.00675919,2229.4,2228.8,1.11]
[1770139814058,0.94,2229.3,2228.8,1.11]
[1770139814448,1.12127735,2229.6,2228.8,1.11]
[1770139814685,0.94,2229.5,2228.8,1.11]
[1770139814994,0.94,2229.5,2228.8,1.665]
[1770139815365,0.94,2229.5,2228.8,1.93780469]
[1770139815665,0.94675919,2229.5,2228.8,1.665]
[1770139815870,0.94675919,2229.5,2228.8,2.22]
[1770139816078,1.12137794,2229.4,2228.8,2.17]
[1770139816395,1.12137794,2229.4,2228.6,1.06304691]